fUSD/lending_fUSD_20260301
["ID","MTS","AMOUNT","RATE_DAILY","PERIOD"]
[406959140,1772355040776,-1340.0,0.00015955,2]
[406959141,1772355040787,-1278.0,0.00015955,2]
[406959142,1772355040797,-921.0,0.00015955,2]
[406959143,1772355040809,-482.723,0.00015955,2]
[406959144,1772355040820,-5985.0,0.00015955,2]
[406959145,1772355040830,-18627.35346933,0.00016005,2]
[406959146,1772355040841,-275.64713909,0.00016042,2]
[406959147,1772355040851,-151.0,0.00016049,2]
[406959148,1772355040862,-500.0,0.00016051,2]
[406959149,1772355040875,-500.0,0.00016051,2]
[406959150,1772355040887,-500.0,0.00016051,2]
[406959151,1772355040899,-606.71826987,0.00016051,2]
[406959152,1772355040909,-500.0,0.00016051,2]
[406959153,1772355040919,-507.43820804,0.00016051,2]
[406959154,1772355040930,-301.5400247,0.00016051,2]
[406959156,1772355040941,-1500000.0,0.00016052,2]
[406959158,1772355040951,-914.71,0.00016077,2]
[406959160,1772355040963,-4173.31805748,0.00016116,2]
[406959161,1772355040974,-9999.99,0.00016116,2]
[406959162,1772355040985,-8518.8976175,0.00016194,2]
[406959163,1772355040996,-18627.35346933,0.00016242,2]
[406959164,1772355041007,-2360.28,0.00016295,2]
[406959165,1772355041018,-979.36214283,0.00016416,2]
[406959166,1772355041028,-544.0,0.00016438,2]
[406959167,1772355041038,-18627.35346933,0.00016478,2]
[406959168,1772355041047,-544.0,0.00016493,2]
[406959169,1772355041058,-544.0,0.00016548,2]
[406959170,1772355041068,-544.0,0.00016602,2]
[406959171,1772355041078,-8518.8976175,0.00016621,2]
[406959172,1772355041087,-544.0,0.00016657,2]
[406959173,1772355041097,-544.0,0.00016712,2]
[406959174,1772355041107,-151.0,0.00016712,2]
[406959175,1772355041117,-18627.35346933,0.00016715,2]
[406959176,1772355041129,-845.0,0.0001672,2]
[406959177,1772355041139,-544.0,0.00016767,2]
[406959178,1772355041149,-914.71,0.00016776,2]
[406959179,1772355041159,-200.0,0.00016792,2]
[406959180,1772355041170,-217.26,0.00016799,2]
[406959181,1772355041179,-544.0,0.00016822,2]
[406959182,1772355041191,-222.1017724,0.00016834,2]
[406959183,1772355041201,-166.8729219,0.00016834,2]
[406959184,1772355041210,-544.0,0.00016876,2]
[406959185,1772355041219,-544.0,0.00016931,2]
[406959186,1772355041229,-18627.35346933,0.00016952,2]
[406959187,1772355041238,-544.0,0.00016986,2]
[406959188,1772355041247,-1600.0,0.00016986,2]
[406959189,1772355041257,-300.0,0.00017,2]
[406959190,1772355041267,-845.0,0.0001704,2]
[406959191,1772355041276,-544.0,0.00017041,2]
[406959192,1772355041288,-8518.8976175,0.00017047,2]
[406959193,1772355041297,-544.0,0.00017096,2]
[406959194,1772355041306,-151.0,0.00017099,2]
[406959195,1772355041315,-500.0,0.00017099,2]
[406959196,1772355041325,-500.0,0.00017099,2]
[406959197,1772355041335,-479.68776638,0.00017099,2]
[406959198,1772355041348,-644.79446246,0.00017099,2]
[406959199,1772355041366,-153.04785948,0.00017108,2]
[406959200,1772355041385,-152.43247842,0.00017135,2]
[406959201,1772355041397,-564.87520289,0.00017135,2]
[406959202,1772355041410,-500.0,0.00017135,2]
[406959203,1772355041425,-544.0,0.0001715,2]
[406959204,1772355041439,-668.65185757,0.00017154,2]
[406959205,1772355041453,-18627.35346933,0.00017189,2]
[406959206,1772355041467,-544.0,0.00017205,2]
[406959207,1772355041480,-693.3919763,0.00017209,2]
[406959208,1772355041494,-544.0,0.0001726,2]
[406959209,1772355041505,-719.04747942,0.00017264,2]
[406959210,1772355041523,-154.27,0.0001728,2]
[406959211,1772355041539,-544.0,0.00017315,2]
[406959212,1772355041553,-745.65223616,0.00017319,2]
[406959213,1772355041566,-858.0,0.0001736,2]
[406959214,1772355041580,-544.0,0.0001737,2]
[406959215,1772355041595,-30432.91,0.0001737,2]
[406959216,1772355041609,-773.2413689,0.00017374,2]
[406959217,1772355041625,-150.49,0.00017398,2]
[406959218,1772355041638,-2000.0,0.000174,2]
[406959219,1772355041650,-400.0,0.000174,6]
[406959220,1772355041664,-544.0,0.00017424,2]
[406959221,1772355041676,-18627.35346933,0.00017425,2]
[406959222,1772355041690,-801.85129955,0.00017429,2]
[406959223,1772355041708,-8518.8976175,0.00017474,2]
[406959224,1772355041721,-544.0,0.00017479,2]
[406959225,1772355041734,-831.51979763,0.00017484,2]
[406959226,1772355041747,-400.0,0.000175,6]
[406959227,1772355041757,-544.0,0.00017534,2]
[406959228,1772355041768,-862.28603014,0.00017539,2]
[406959229,1772355041783,-900.0,0.00017578,2]
[406959230,1772355041808,-544.0,0.00017589,2]
[406959231,1772355041820,-894.19061326,0.00017594,2]
[406959232,1772355041831,-1291.942,0.000176,2]
[406959233,1772355041843,-175.664,0.000176,2]
[406959234,1772355041858,-2614.0,0.000176,2]
[406959235,1772355041875,-400.0,0.000176,6]
[406959236,1772355041887,-1305.33998525,0.00017638,2]
[406959237,1772355041898,-1020.35232695,0.0001764,2]
[406959238,1772355041911,-1028.67300995,0.0001764,2]
[406959239,1772355041923,-1040.92924771,0.0001764,2]
[406959240,1772355041935,-1015.51176158,0.0001764,2]
[406959241,1772355041951,-1073.10137219,0.0001764,2]
[406959242,1772355041964,-1010.93357651,0.0001764,2]
[406959243,1772355041978,-1124.62049691,0.0001764,2]
[406959244,1772355041989,-1120.80684232,0.0001764,2]
[406959245,1772355042001,-1120.96204614,0.0001764,2]
[406959246,1772355042013,-1043.64528721,0.0001764,2]
[406959247,1772355042026,-1076.05527067,0.0001764,2]
[406959248,1772355042038,-1116.05551032,0.0001764,2]
[406959249,1772355042051,-1056.23061841,0.0001764,2]
[406959250,1772355042065,-1070.9730041,0.0001764,2]
[406959251,1772355042077,-1106.93032687,0.0001764,2]
[406959252,1772355042090,-1105.83882537,0.0001764,2]
[406959253,1772355042102,-1092.64430071,0.0001764,2]
[406959254,1772355042116,-1106.61638946,0.0001764,2]
[406959255,1772355042128,-1122.13402143,0.0001764,2]
[406959256,1772355042139,-1003.02608064,0.0001764,2]
[406959257,1772355042151,-1092.65948459,0.0001764,2]
[406959258,1772355042163,-1015.57299564,0.0001764,2]
[406959259,1772355042174,-1132.16229953,0.0001764,2]
[406959260,1772355042186,-1086.95520513,0.0001764,2]
[406959261,1772355042197,-1095.73692313,0.0001764,2]
[406959262,1772355042208,-1087.8704007,0.0001764,2]
[406959263,1772355042220,-1067.97654469,0.0001764,2]
[406959264,1772355042230,-1295.29205457,0.0001764,2]
[406959265,1772355042242,-1019.05221681,0.0001764,2]
[406959266,1772355042253,-544.0,0.00017643,2]
[406959267,1772355042263,-168.0,0.00017648,2]
[406959268,1772355042274,-927.27566595,0.00017649,2]
[406959269,1772355042285,-18627.35346933,0.00017662,2]
[406959270,1772355042296,-2847.0,0.0001768,2]
[406959271,1772355042307,-562.62186763,0.00017698,2]
[406959272,1772355042318,-400.0,0.000177,6]
[406959273,1772355042329,-961.58486559,0.00017704,2]
[406959274,1772355042341,-291.0,0.00017753,2]
[406959275,1772355042353,-997.16350561,0.00017759,2]
[406959276,1772355042365,-417.0,0.00017777,2]
[406959277,1772355042375,-168.0,0.00017779,2]
[406959278,1772355042387,-21975.2446,0.000178,2]
[406959279,1772355042398,-1000.0,0.000178,2]
[406959280,1772355042409,-1000.0,0.000178,2]
[406959281,1772355042421,-733.851,0.000178,2]
[406959282,1772355042432,-1000.0,0.000178,6]
[406959283,1772355042443,-5000.0,0.00017808,2]
[406959284,1772355042454,-500.0,0.00017808,2]
[406959285,1772355042466,-630.18278028,0.00017808,2]
[406959286,1772355042478,-630.18278028,0.00017808,2]
[406959287,1772355042488,-630.18278028,0.00017808,2]
[406959288,1772355042500,-630.18278028,0.00017808,2]
[406959289,1772355042513,-630.18278028,0.00017808,2]
[406959290,1772355042527,-630.18278028,0.00017808,2]
[406959291,1772355042536,-630.18278028,0.00017808,2]
[406959292,1772355042545,-630.18278028,0.00017808,2]
[406959293,1772355042562,-630.18278028,0.00017808,2]
[406959294,1772355042582,-630.18278028,0.00017808,2]
[406959295,1772355042593,-630.18278028,0.00017808,2]
[406959296,1772355042603,-630.18278028,0.00017808,2]
[406959297,1772355042615,-630.18278028,0.00017808,2]
[406959298,1772355042628,-630.18278028,0.00017808,2]
[406959299,1772355042639,-630.18278028,0.00017808,2]
[406959300,1772355042653,-630.18278028,0.00017808,2]
[406959301,1772355042836,-630.18278028,0.00017808,2]
[406959302,1772355042851,-630.18278028,0.00017808,2]
[406959303,1772355042861,-630.18278028,0.00017808,2]
[406959304,1772355042870,-702.20366945,0.00017808,2]
[406959305,1772355042879,-702.20366945,0.00017808,2]
[406959306,1772355042888,-702.20366945,0.00017808,2]
[406959307,1772355042897,-702.20366945,0.00017808,2]
[406959308,1772355042906,-702.20366945,0.00017808,2]
[406959310,1772355042916,-702.20366945,0.00017808,2]
[406959311,1772355042926,-702.20366945,0.00017808,2]
[406959312,1772355042936,-800.0,0.00017808,2]
[406959313,1772355042946,-1072.87450731,0.0001782,10]
[406959314,1772355042955,-162.35078762,0.0001782,2]
[406959315,1772355042964,-354.70699,0.0001783,2]
[406959316,1772355042973,-417.0,0.00017845,2]
[406959317,1772355042982,-168.0,0.00017852,2]
[406959318,1772355042991,-168.0,0.00017856,2]
[406959319,1772355043000,-25000.0,0.00017856,3]
[406959320,1772355043010,-176.2097608,0.00017858,3]
[406959321,1772355043019,-500.0,0.00017863,2]
[406959323,1772355043028,-25000.0,0.00017865,3]
[406959325,1772355043038,-25000.0,0.00017874,3]
[406959327,1772355043047,-354.70698,0.0001788,2]
[406959329,1772355043056,-25000.0,0.00017882,3]
[406959331,1772355043066,-500.0,0.0001789,2]
[406959333,1772355043075,-220.0,0.0001789,2]
[406959335,1772355043085,-25000.0,0.00017891,3]
[406959337,1772355043094,-18627.35346933,0.00017899,2]
[406959338,1772355043104,-8235.0,0.000179,2]
[406959339,1772355043113,-776.18210176,0.000179,2]
[406959341,1772355043122,-25000.0,0.000179,3]
[406959342,1772355043132,-12102.88705539,0.000179,3]
[406959343,1772355043140,-8518.8976175,0.000179,2]
[406959344,1772355043150,-222.1017724,0.000179,2]
[406959345,1772355043159,-166.8729219,0.000179,3]
[406959346,1772355043169,-500.0,0.00017918,2]
[406959347,1772355043179,-354.70699,0.0001793,2]
[406959348,1772355043188,-154.27,0.00017936,2]
[406959349,1772355043198,-287.24701665,0.00017964,2]
[406959350,1772355043210,-300.0,0.00017964,2]
[406959351,1772355043220,-300.0,0.00017964,2]
[406959352,1772355043230,-96936.51637146,0.00017965,2]
[406959353,1772355043239,-400.0,0.0001797,2]
[406959354,1772355043248,-1000.0,0.0001797,2]
[406959355,1772355043257,-400.0,0.0001797,2]
[406959356,1772355043266,-1000.0,0.0001797,2]
[406959357,1772355043275,-400.0,0.0001797,2]
[406959358,1772355043284,-1000.0,0.0001797,2]
[406959359,1772355043293,-400.0,0.0001797,2]
[406959360,1772355043302,-1000.0,0.0001797,2]
[406959361,1772355043311,-401.96578725,0.0001797,2]
[406959362,1772355043321,-1000.0,0.0001797,2]
[406959363,1772355043330,-1000.0,0.0001797,2]
[406959364,1772355043339,-1124.71635469,0.0001797,2]
[406959365,1772355043352,-150.61842355,0.00017972,2]
[406959367,1772355043361,-500.0,0.00017972,2]
[406959368,1772355043370,-1362.6388972,0.00017973,2]
[406959370,1772355043381,-354.70699,0.0001798,2]
[406959372,1772355043391,-521.79390694,0.00017982,2]
[406959374,1772355043400,-275.64713909,0.0001799,2]
[406959375,1772355043409,-151.0,0.00017997,2]
[406959376,1772355043419,-151.0,0.00017997,2]
[406959377,1772355043428,-300.0,0.00017998,2]
[406959378,1772355043437,-30000.0,0.00017999,2]
[406959379,1772355043446,-40192.89645065,0.00017999,3]
[406959380,1772355043455,-26468.09987223,0.00017999,4]
[406959381,1772355043465,-841.56455587,0.00017999,5]
[406959382,1772355043476,-201.14417502,0.00017999,5]
[406959383,1772355043486,-385386.7025151,0.00017999,2]
[406959384,1772355043495,-300.0,0.00017999,2]
[406959385,1772355043504,-21136.6013884,0.00017999,2]
[406959386,1772355043512,-300.0,0.00017999,2]
[406959387,1772355043521,-40679.4928311,0.00017999,2]
[406959388,1772355043530,-44184.8483915,0.00017999,2]
[406959389,1772355043539,-219.8714796,0.00017999,2]
[406959390,1772355043548,-308.72489785,0.00017999,2]
[406959391,1772355043557,-352.47562623,0.00017999,2]
[406959392,1772355043566,-176.817513,0.00017999,2]
[406959393,1772355043575,-176.817513,0.00017999,2]
[406959394,1772355043585,-176.817513,0.00017999,2]
[406959395,1772355043594,-176.817513,0.00017999,2]
[406959396,1772355043604,-151.0,0.00017999,2]
[406959397,1772355043614,-157.447486,0.00017999,2]
[406959398,1772355043623,-151.0,0.00017999,2]
[406959399,1772355043633,-4712.0564571,0.00017999,2]
[406959400,1772355043642,-151.000012,0.00017999,2]
[406959401,1772355043651,-190.028605,0.00017999,2]
[406959402,1772355043661,-190.028605,0.00017999,2]
[406959403,1772355043670,-190.028605,0.00017999,2]
[406959404,1772355043679,-190.028605,0.00017999,2]
[406959405,1772355043689,-316.655589,0.00017999,2]
[406959406,1772355043698,-316.655589,0.00017999,2]
[406959407,1772355043708,-316.655589,0.00017999,2]
[406959408,1772355043717,-316.655589,0.00017999,2]
[406959409,1772355043725,-151.0,0.00017999,2]
[406959410,1772355043734,-151.0,0.00017999,2]
[406959411,1772355043744,-151.0,0.00017999,2]
[406959412,1772355043753,-151.0,0.00017999,2]
[406959413,1772355043762,-151.0,0.00017999,2]
[406959414,1772355043771,-151.0,0.00017999,2]
[406959415,1772355043780,-150.0,0.00017999,2]
[406959416,1772355043789,-161.34480459,0.00017999,2]
[406959417,1772355043798,-224.69380209,0.00018,2]
[406959418,1772355043807,-2345654.04052631,0.00018,2]
[406959419,1772355044148,-2457.0,0.00015955,2]
[406959420,1772355044157,-4370.57439613,0.00018,2]
[406959421,1772355044177,-642.20258695,0.00018,2]
[406959422,1772355044189,-1417.2672,0.00018,2]
[406959423,1772355045887,-17106.82219042,0.00018,2]
[406959424,1772355045899,-877.87072517,0.00018,2]
[406959425,1772355045910,-599.3914,0.00018,2]
[406959427,1772355271836,150.0,0.00015997,120]
[406959429,1772355554877,301.31430084,1.785e-05,2]
[406959481,1772356232115,-9461.87379495,0.00011,2]
[406959482,1772356232126,-300.0,0.000121,2]
[406959483,1772356232137,-16849.09031003,0.00012833,2]
[406959484,1772356232148,-5630.08383952,0.00013,2]
[406959485,1772356232159,-1455.21702499,0.00013,15]
[406959486,1772356232170,-380.66016665,0.00013621,2]
[406959487,1772356232181,-166.66,0.0001389,2]
[406959488,1772356232192,-521.0,0.0001411,2]
[406959489,1772356232208,-166.66,0.00014182,2]
[406959490,1772356232219,-1183.5170641,0.0001422,2]
[406959491,1772356232231,-3240.0,0.00014423,2]
[406959492,1772356232244,-152.7,0.00014431,2]
[406959493,1772356232255,-1000.0,0.00014437,2]
[406959494,1772356232267,-166.66,0.00014475,2]
[406959495,1772356232278,-150.99,0.00014504,2]
[406959496,1772356232290,-3586.63460115,0.00014504,2]
[406959497,1772356232312,-6413.35539885,0.00014504,2]
[406959498,1772356232325,-778.70623718,0.00014504,2]
[406959499,1772356232341,-2977.0394641,0.00014504,2]
[406959500,1772356232354,-468.76048502,0.00014504,2]
[406959570,1772356240280,-543.9738137,0.00014504,2]
[406959571,1772356240290,-1000.0,0.00014506,2]
[406959572,1772356240300,-150.0,0.00014507,2]
[406959573,1772356240309,-204.0,0.00014526,2]
[406959574,1772356240319,-10480.46,0.00014526,2]
[406959575,1772356240328,-250.0,0.00014535,2]
[406959576,1772356240338,-928.0,0.00014685,2]
[406959577,1772356240349,-251.0,0.00014715,2]
[406959578,1772356240358,-166.66,0.00014767,2]
[406959579,1772356240369,-321.13495914,0.00014773,2]
[406959580,1772356240379,-500.0,0.00014773,2]
[406959581,1772356240389,-290.12369262,0.00014773,2]
[406959582,1772356240399,-500.0,0.00014773,2]
[406959583,1772356240409,-500.0,0.00014773,2]
[406959584,1772356240418,-500.0,0.00014773,2]
[406959585,1772356240428,-250.0,0.00015,2]
[406959586,1772356240438,-166.66,0.0001506,2]
[406959587,1772356240447,-4476.73522245,0.00015065,2]
[406959588,1772356240456,-244.09261149,0.00015321,2]
[406959589,1772356240466,-479.36214283,0.00015321,2]
[406959590,1772356240475,-152.7,0.00015333,2]
[406959591,1772356240487,-166.66,0.00015352,2]
[406959592,1772356240496,-153.04785948,0.00015384,2]
[406959593,1772356240505,-174.09452548,0.00015441,2]
[406959594,1772356240515,-160.0,0.00015441,2]
[406959595,1772356240524,-18744.01430742,0.00015719,2]
[406959596,1772356240535,-500.0,0.00015844,2]
[406959597,1772356240544,-150.61842355,0.00015844,2]
[406959598,1772356240554,-150.0,0.00015955,2]
[406959599,1772356240563,-250.0,0.00015955,2]
[406959600,1772356240572,-150.141,0.00015955,2]
[406959601,1772356240581,-150.0,0.00015955,2]
[406959602,1772356240591,-150.126,0.00015955,2]
[406959603,1772356240599,-1340.0,0.00015955,2]
[406959604,1772356240609,-619.0,0.00015955,2]
[406959605,1772356240619,-1041.0,0.00015955,2]
[406959606,1772356240628,-1278.0,0.00015955,2]
[406959607,1772356240637,-921.0,0.00015955,2]
[406959608,1772356240647,-1211.0,0.00015955,2]
[406959609,1772356240657,-5985.0,0.00015955,2]
[406959610,1772356240667,-2457.0,0.00015955,2]
[406959611,1772356240676,-4575.0,0.00015955,2]
[406959612,1772356240685,-158.0,0.00015997,3]
[406959613,1772356240695,-150.0,0.00015997,2]
[406959614,1772356240704,-9999.99,0.00016116,2]
[406959615,1772356240717,-13613.19406776,0.00016136,2]
[406959616,1772356240726,-152.7,0.00016235,2]
[406959617,1772356240735,-1000.0,0.00016242,2]
[406959618,1772356240745,-259.35,0.00016317,2]
[406959619,1772356240755,-200.0,0.0001634,2]
[406959620,1772356240764,-1546.61996065,0.00016354,3]
[406959621,1772356240773,-19020.15340818,0.00016426,2]
[406959622,1772356240785,-43392.99153932,0.00016445,2]
[406959623,1772356240795,-1800.0,0.000165,6]
[406959624,1772356240804,-800.0,0.000165,6]
[406959625,1772356240813,-1092.87789388,0.00016525,2]
[406959626,1772356240822,-21975.2446,0.00016526,2]
[406959627,1772356240831,-5000.0,0.00016526,2]
[406959628,1772356240840,-9582.74,0.00016575,2]
[406959629,1772356240850,-19020.15340813,0.0001659,2]
[406959630,1772356240859,-362.09319659,0.000166,2]
[406959631,1772356240868,-3700.0,0.000166,6]
[406959632,1772356240877,-14901.8827755,0.000166,2]
[406959633,1772356240887,-222.1017724,0.000166,2]
[406959634,1772356240897,-1700.0,0.000166,6]
[406959635,1772356240907,-166.8729219,0.000166,2]
[406959636,1772356240916,-7099.08134795,0.000166,2]
[406959637,1772356240926,-372.0,0.00016603,2]
[406959638,1772356240935,-275.6471391,0.00016616,2]
[406959639,1772356240944,-151.0,0.00016623,2]
[406959641,1772356240954,-151.0,0.00016623,2]
[406959644,1772356240963,-500.0,0.00016625,2]
[406959647,1772356240972,-500.0,0.00016625,2]
[406959649,1772356240982,-500.0,0.00016625,2]
[406959651,1772356240991,-500.0,0.00016625,2]
[406959653,1772356240999,-500.0,0.00016625,2]
[406959655,1772356241008,-500.0,0.00016625,2]
[406959657,1772356241018,-500.0,0.00016625,2]
[406959659,1772356241027,-500.0,0.00016625,2]
[406959660,1772356241036,-500.0,0.00016625,2]
[406959661,1772356241046,-500.0,0.00016625,2]
[406959662,1772356241056,-500.0,0.00016625,2]
[406959663,1772356241065,-500.0,0.00016625,2]
[406959664,1772356241074,-500.0,0.00016625,2]
[406959665,1772356241083,-500.0,0.00016625,2]
[406959666,1772356241092,-310.36647957,0.00016625,2]
[406959667,1772356241102,-500.0,0.00016625,2]
[406959668,1772356241113,-233.4835721,0.00016625,2]
[406959669,1772356241122,-152.43247842,0.00016625,2]
[406959670,1772356241131,-564.87520289,0.00016625,2]
[406959671,1772356241141,-2500000.0,0.00016626,2]
[406959672,1772356241150,-5600.0,0.000167,6]
[406959673,1772356241159,-2600.0,0.000167,6]
[406959674,1772356241171,-845.0,0.0001672,2]
[406959675,1772356241180,-845.0,0.0001672,2]
[406959676,1772356241189,-1092.87789383,0.00016721,2]
[406959677,1772356241198,-14901.88277546,0.00016744,2]
[406959678,1772356241207,-19020.15340813,0.00016753,2]
[406959679,1772356241217,-7500.0,0.000168,6]
[406959680,1772356241226,-3500.0,0.000168,6]
[406959681,1772356241235,-7099.08134791,0.0001686,2]
[406959682,1772356241254,-14901.88277546,0.00016888,2]
[406959683,1772356241265,-9400.0,0.000169,6]
[406959684,1772356241275,-4300.0,0.000169,6]
[406959685,1772356241284,-19020.15340813,0.00016917,2]
[406959686,1772356241294,-1092.87789383,0.00016918,2]
[406959687,1772356241303,-1500.0,0.00016938,2]
[406959688,1772356241312,-166.66,0.00016981,2]
[406959689,1772356241322,-544.0,0.00016986,2]
[406959690,1772356241332,-151.0,0.00016997,2]
[406959691,1772356241341,-500.0,0.00016999,2]
[406959692,1772356241351,-211.07801729,0.00016999,2]
[406959693,1772356241361,-500.0,0.00016999,2]
[406959694,1772356241371,-410.03413029,0.00016999,2]
[406959695,1772356241381,-500.0,0.00016999,2]
[406959696,1772356241390,-324.70278891,0.00016999,2]
[406959697,1772356241401,-228.53277993,0.00017,2]
[406959698,1772356241410,-734706.52491903,0.00017,2]
[406959699,1772356241425,-26117.43658238,0.00017,2]
[406959700,1772356241436,-6260.77965526,0.00017,2]
[406959701,1772356241447,-3163.2765224,0.00017,2]
[406959702,1772356241462,-481.05349998,0.00017,2]
[406959703,1772356241474,-780.94030136,0.00017,2]
[406959704,1772356241485,-270.05887817,0.00017,2]
[406959715,1772356243178,-52600.04449233,0.00017,2]
[406959716,1772356243190,-7593.41478205,0.00017,2]
[406959717,1772356243386,-574.71737236,0.00017,2]
[406959718,1772356243398,-1279.8528,0.00017,2]
[406959732,1772356246034,-361.34944463,0.00017,2]
[406959733,1772356246046,-1072.91117998,0.00017,2]
[406959738,1772356249805,-357150.99827984,0.00017,2]
[406959739,1772356249815,-151.99741584,0.00017,2]
[406959740,1772356249824,-300.0,0.00017,2]
[406959741,1772356249833,-14901.88277546,0.00017033,2]
[406959742,1772356249842,-2847.0,0.0001704,2]
[406959743,1772356249851,-858.0,0.0001704,2]
[406959744,1772356249860,-544.0,0.00017041,2]
[406959745,1772356249869,-19020.15340813,0.0001708,2]
[406959746,1772356249879,-171.454654,0.0001708,7]
[406959747,1772356249888,-544.0,0.00017096,2]
[406959748,1772356249897,-151.0,0.00017099,2]
[406959749,1772356249906,-644.79446246,0.00017099,2]
[406959750,1772356249915,-500.0,0.00017099,2]
[406959751,1772356249924,-500.0,0.00017099,2]
[406959752,1772356249934,-479.68776638,0.00017099,2]
[406959753,1772356249943,-1092.87789383,0.00017114,2]
[406959754,1772356249952,-7099.08134791,0.0001712,2]
[406959755,1772356249961,-152.7,0.00017137,2]
[406959756,1772356249970,-544.0,0.0001715,2]
[406959757,1772356249980,-668.65185757,0.00017154,2]
[406959758,1772356249989,-14901.88277546,0.00017177,2]
[406959759,1772356249998,-544.0,0.00017205,2]
[406959760,1772356250007,-693.3919763,0.00017209,2]
[406959761,1772356250017,-19020.15340813,0.00017244,2]
[406959762,1772356250027,-544.0,0.0001726,2]
[406959763,1772356250037,-719.04747942,0.00017264,2]
[406959764,1772356250046,-1092.87789383,0.00017311,2]
[406959765,1772356250056,-544.0,0.00017315,2]
[406959766,1772356250065,-745.65223616,0.00017319,2]
[406959767,1772356250075,-14901.88277546,0.00017321,2]
[406959768,1772356250084,-544.0,0.0001737,2]
[406959769,1772356250093,-773.2413689,0.00017374,2]
[406959770,1772356250102,-7099.08134791,0.0001738,2]
[406959771,1772356250111,-2000.0,0.000174,2]
[406959772,1772356250121,-1800.0,0.000174,6]
[406959773,1772356250132,-800.0,0.000174,6]
[406959774,1772356250142,-19020.15340813,0.00017407,2]
[406959775,1772356250152,-544.0,0.00017424,2]
[406959776,1772356250161,-801.85129955,0.00017429,2]
[406959777,1772356250171,-14901.88277546,0.00017465,2]
[406959778,1772356250180,-544.0,0.00017479,2]
[406959779,1772356250189,-831.51979763,0.00017484,2]
[406959780,1772356250199,-842.57718765,0.000175,3]
[406959781,1772356250209,-5617.1416035,0.000175,3]
[406959782,1772356250349,-1800.0,0.000175,6]
[406959783,1772356250360,-800.0,0.000175,6]
[406959784,1772356250370,-1305.33998525,0.00017503,2]
[406959785,1772356250382,-1092.87789383,0.00017507,2]
[406959786,1772356250392,-544.0,0.00017534,2]
[406959787,1772356250402,-862.28603014,0.00017539,2]
[406959788,1772356250412,-166.66,0.00017542,2]
[406959789,1772356250423,-19020.15340813,0.00017571,2]
[406959790,1772356250434,-544.0,0.00017589,2]
[406959791,1772356250444,-894.19061326,0.00017594,2]
[406959792,1772356250454,-2000.0,0.000176,2]
[406959793,1772356250464,-1800.0,0.000176,6]
[406959794,1772356250475,-800.0,0.000176,6]
[406959795,1772356250485,-14901.88277546,0.0001761,2]
[406959796,1772356250495,-168.0,0.00017629,2]
[406959797,1772356250505,-1019.05221681,0.0001764,2]
[406959798,1772356250515,-7099.08134791,0.0001764,2]
[406959799,1772356250524,-544.0,0.00017644,2]
[406959800,1772356250533,-927.27566595,0.00017649,2]
[406959801,1772356250542,-388.0,0.0001768,2]
[406959802,1772356250552,-544.0,0.00017698,2]
[406959803,1772356250562,-785.5921017,0.000177,2]
[406959804,1772356250572,-1291.942,0.000177,2]
[406959805,1772356250582,-175.664,0.000177,2]
[406959806,1772356250592,-403.0,0.000177,5]
[406959807,1772356250602,-1800.0,0.000177,6]
[406959808,1772356250612,-800.0,0.000177,6]
[406959809,1772356250622,-1092.87789383,0.00017704,2]
[406959810,1772356250632,-961.58486559,0.00017704,2]
[406959811,1772356250642,-152.0,0.00017717,3]
[406959812,1772356250652,-19020.15340813,0.00017734,2]
[406959813,1772356250662,-417.0,0.00017743,2]
[406959814,1772356250671,-200.0,0.0001775,2]
[406959815,1772356250681,-544.0,0.00017753,2]
[406959816,1772356250693,-14901.88277546,0.00017754,2]